[Event "Croatian junior league 2021"]
[Site "Rabac"]
[Date "2021.04.10"]
[Round "10.13"]
[White "Bunic, Emanuel"]
[Black "Novosel, Marko"]
[Result "1/2-1/2"]
[ECO "A52"]
[WhiteElo "1839"]
[BlackElo "2130"]
[Annotator "NA RC"]
[PlyCount "98"]
[EventDate "2021.04.06"]
[EventType "swiss"]
[EventCountry "CRO"]
[SourceTitle "playchess.com"]
[Source "ChessBase"]
[SourceQuality "1"]
[TimeControl "5400+30"]

1. d4 {[%emt 0:00:00]} Nf6 {[%emt 0:00:00]} 2. c4 {[%emt 0:00:00]} e5 {[%emt 0:00:00]} 3. dxe5 {[%emt 0:00:13]} Ng4 {[%emt 0:00:00]} 4. Bf4 {[%emt 0:00:45]} Nc6 {[%emt 0:01:34]} 5. Nf3 {[%emt 0:00:34]} Bb4+ {[%emt 0:00:08]} 6. Nbd2 {[%emt 0:00:46]} Qe7 {[%emt 0:00:11]} 7. e3 {[%emt 0:01:11]} Ngxe5 {[%emt 0:00:31]} 8. Nxe5 {[%emt 0:00:46]} Nxe5 {[%emt 0:00:38]} 9. Be2 {[%emt 0:00:35]} d6 {[%emt 0:00:54]} 10. O-O {[%emt 0:00:49]} Bxd2 {[%emt 0:00:31]} 11. Qxd2 {[%emt 0:00:25]} h5 {[%emt 0:04:09]} 12. Qd4 {[%emt 0:06:25]} c5 {[%emt 0:20:35]} 13. Qc3 {[%emt 0:06:36]} Bd7 {[%emt 0:03:17]} 14. Bxe5 {[%emt 0:10:54]} dxe5 {[%emt 0:20:08]} 15. Rfd1 {[%emt 0:21:13]} f6 {[%emt 0:03:52]} 16. Qd3 {[%emt 0:01:28]} O-O-O {[%emt 0:01:22]} 17. Qd6 {[%emt 0:04:13]} Qxd6 {[%emt 0:00:54]} 18. Rxd6 {[%emt 0:00:12]} h4 {[%emt 0:04:11]} 19. Rad1 {[%emt 0:11:33]} Bc6 {[%emt 0:03:16]} 20. Rxd8+ {[%emt 0:04:40]} Rxd8 {[%emt 0:00:19]} 21. Rxd8+ {[%emt 0:00:44]} Kxd8 {[%emt 0:00:07]} 22. f3 {[%emt 0:01:49]} Ke7 {[%emt 0:04:15]} 23. e4 {[%emt 0:01:53]} g6 {[%emt 0:05:29]} 24. Bd3 {[%emt 0:01:11]} Bd7 {[%emt 0:02:01]} 25. Kf2 {[%emt 0:01:20]} f5 {[%emt 0:00:21]} 26. g3 {[%emt 0:01:13]} hxg3+ {[%emt 0:01:10]} 27. hxg3 {[%emt 0:00:35]} f4 {[%emt 0:02:38]} 28. g4 {[%emt 0:01:18]} Kf6 {[%emt 0:04:00]} 29. Bf1 {[%emt 0:01:20]} a6 {[%emt 0:03:51]} 30. Bd3 {[%emt 0:01:38]} Kg5 {[%emt 0:02:32]} 31. b3 {[%emt 0:02:27]} Kf6 {[%emt 0:09:19]} 32. Ke1 {[%emt 0:00:49]} Ke6 {[%emt 0:01:37]} 33. Kd2 {[%emt 0:00:36]} Kd6 {[%emt 0:00:13]} 34. Kc3 {[%emt 0:00:51]} Kc6 {[%emt 0:00:39]} 35. Be2 {[%emt 0:00:24]} Kb6 {[%emt 0:00:20]} 36. Bf1 {[%emt 0:01:03]} Ka5 {[%emt 0:01:47]} 37. Be2 {[%emt 0:00:40]} b5 {[%emt 0:00:38]} 38. Bf1 {[%emt 0:02:16]} g5 {[%emt 0:00:23]} 39. Be2 {[%emt 0:00:59]} Bc6 {[%emt 0:01:00]} 40. Bf1 {[%emt 0:00:38]} Bd7 {[%emt 0:00:29]} 41. Be2 {[%emt 0:00:45]} Be6 {[%emt 0:00:07]} 42. Bf1 {[%emt 0:00:44]} Kb6 {[%emt 0:00:57]} 43. Be2 {[%emt 0:01:26]} Bd7 {[%emt 0:00:29]} 44. Bf1 {[%emt 0:00:51]} Be8 {[%emt 0:00:26]} 45. Be2 {[%emt 0:00:26]} Ka5 {[%emt 0:00:15]} 46. Bf1 {[%emt 0:00:28]} Kb6 {[%emt 0:00:30]} 47. Be2 {[%emt 0:00:29]} Bf7 {[%emt 0:00:22]} 48. Bf1 {[%emt 0:00:24]} Be6 {[%emt 0:00:55]} 49. Be2 {[%emt 0:00:13]} Bf7 {[%emt 0:00:31]} 1/2-1/2

[Event "Croatian junior league 2021"]
[Site "Rabac"]
[Date "2021.04.10"]
[Round "10.14"]
[White "Klapac, Patrik"]
[Black "Zadro, Matej"]
[Result "0-1"]
[ECO "C50"]
[WhiteElo "1780"]
[BlackElo "1742"]
[Annotator "NA RC"]
[PlyCount "97"]
[EventDate "2021.04.06"]
[EventType "swiss"]
[EventCountry "CRO"]
[SourceTitle "playchess.com"]
[Source "ChessBase"]
[SourceQuality "1"]
[TimeControl "5400+30"]

1. e4 {[%emt 0:00:00]} e5 {[%emt 0:02:45]} 2. Nf3 {[%emt 0:00:00]} Nc6 {[%emt 0:00:04]} 3. Bc4 {[%emt 0:00:00]} Nf6 {[%emt 0:00:03]} 4. d3 {[%emt 0:00:00]} h6 {[%emt 0:00:11]} 5. Nc3 {[%emt 0:00:19]} Bc5 {[%emt 0:03:27]} 6. O-O {[%emt 0:01:02]} d6 {[%emt 0:00:40]} 7. h3 {[%emt 0:00:06]} g5 {[%emt 0:02:42]} 8. Kh1 {[%emt 0:58:00]} g4 {[%emt 0:16:05]} 9. Nh2 {[%emt 0:04:00]} gxh3 {[%emt 0:08:58]} 10. g3 {[%emt 0:00:07]} Qe7 {[%emt 0:13:04]} 11. Na4 {[%emt 0:01:37]} Bb6 {[%emt 0:03:31]} 12. Nxb6 {[%emt 0:01:38]} axb6 {[%emt 0:00:02]} 13. Be3 {[%emt 0:00:22]} Be6 {[%emt 0:02:31]} 14. Bxe6 {[%emt 0:01:20]} fxe6 {[%emt 0:00:40]} 15. Qd2 {[%emt 0:01:32]} O-O-O {[%emt 0:03:08]} 16. Bxh6 {[%emt 0:07:03]} Rdg8 {[%emt 0:03:49]} 17. Bg5 {[%emt 0:01:34]} Nxe4 {[%emt 0:01:42]} 18. dxe4 {[%emt 0:00:48]} Rxg5 {[%emt 0:11:38]} 19. c3 {[%emt 0:01:29]} Rgg8 {[%emt 0:04:52]} 20. b4 {[%emt 0:00:13]} Qh7 {[%emt 0:02:13]} 21. Qe2 {[%emt 0:00:09]} Kd7 {[%emt 0:07:21]} 22. Rad1 {[%emt 0:00:28]} Qh5 {[%emt 0:00:32]} 23. Qe3 {[%emt 0:05:30]} Ra8 {[%emt 0:00:27]} 24. Rd2 {[%emt 0:00:53]} Ra3 {[%emt 0:00:32]} 25. Rb1 {[%emt 0:03:52]} Rha8 {[%emt 0:00:15]} 26. g4 {[%emt 0:01:33]} Qf7 {[%emt 0:03:43]} 27. Nf3 {[%emt 0:02:06]} Qf4 {[%emt 0:02:40]} 28. Qxf4 {[%emt 0:02:05]} exf4 {[%emt 0:00:05]} 29. g5 {[%emt 0:00:03]} Rxa2 {[%emt 0:00:34]} 30. Rbd1 {[%emt 0:01:04]} Rxd2 {[%emt 0:00:30]} 31. Rxd2 {[%emt 0:00:04]} Ke7 {[%emt 0:00:26]} 32. Kh2 {[%emt 0:00:26]} Rh8 {[%emt 0:02:09]} 33. Ra2 {[%emt 0:01:03]} Kf7 {[%emt 0:01:10]} 34. Ng1 {[%emt 0:00:55]} Kg6 {[%emt 0:03:51]} 35. Nxh3 {[%emt 0:00:28]} e5 {[%emt 0:00:36]} 36. f3 {[%emt 0:00:12]} Nd8 {[%emt 0:00:20]} 37. Kg2 {[%emt 0:00:22]} Ne6 {[%emt 0:00:20]} 38. Ra7 {[%emt 0:00:25]} Nxg5 {[%emt 0:00:03]} 39. Nxg5 {[%emt 0:00:05]} Kxg5 {[%emt 0:00:03]} 40. Rxb7 {[%emt 0:00:28]} Rh7 {[%emt 0:00:02]} 41. c4 {[%emt 0:00:30]} Kh4 {[%emt 0:01:33]} 42. b5 {[%emt 0:00:37]} Rg7+ {[%emt 0:00:19]} 43. Kf2 {[%emt 0:00:06]} Kh3 {[%emt 0:00:41]} 44. Ra7 {[%emt 0:03:12]} Rg2+ {[%emt 0:00:42]} 45. Kf1 {[%emt 0:00:04]} Kg3 {[%emt 0:00:38]} 46. Rxc7 {[%emt 0:00:12]} Kxf3 {[%emt 0:00:21]} 47. Rc6 {[%emt 0:00:13]} Ra2 {[%emt 0:00:15]} 48. Ke1 {[%emt 0:00:31]} Ke3 {[%emt 0:00:51]} 49. Rc7 {[%emt 0:00:36]} 0-1

[Event "Croatian junior league 2021"]
[Site "Rabac"]
[Date "2021.04.10"]
[Round "10.15"]
[White "Horcicka, Jan"]
[Black "Jakovic, Roko"]
[Result "1/2-1/2"]
[ECO "B90"]
[WhiteElo "1698"]
[BlackElo "1846"]
[Annotator "NA RC"]
[PlyCount "114"]
[EventDate "2021.04.06"]
[EventType "swiss"]
[EventCountry "CRO"]
[SourceTitle "playchess.com"]
[Source "ChessBase"]
[SourceQuality "1"]
[TimeControl "5400+30"]

1. e4 {[%emt 0:00:00]} c5 {[%emt 0:00:00]} 2. Nf3 {[%emt 0:00:00]} d6 {[%emt 0:00:02]} 3. d4 {[%emt 0:00:00]} cxd4 {[%emt 0:00:12]} 4. Nxd4 {[%emt 0:00:00]} Nf6 {[%emt 0:00:24]} 5. Nc3 {[%emt 0:00:00]} a6 {[%emt 0:00:08]} 6. Be3 {[%emt 0:00:49]} e5 {[%emt 0:00:34]} 7. Nf3 {[%emt 0:00:56]} Be7 {[%emt 0:01:37]} 8. Bc4 {[%emt 0:00:57]} O-O {[%emt 0:02:28]} 9. O-O {[%emt 0:00:12]} Bg4 {[%emt 0:02:39]} 10. Qe2 {[%emt 0:01:26]} Nbd7 {[%emt 0:02:53]} 11. Rad1 {[%emt 0:00:37]} Qc7 {[%emt 0:03:04]} 12. Bb3 {[%emt 0:06:11]} b5 {[%emt 0:07:36]} 13. a3 {[%emt 0:01:15]} Rad8 {[%emt 0:02:28]} 14. h3 {[%emt 0:05:40]} Bxf3 {[%emt 0:08:10]} 15. Qxf3 {[%emt 0:00:17]} Nc5 {[%emt 0:08:22]} 16. Bd5 {[%emt 0:01:28]} Na4 {[%emt 0:07:50]} 17. Nxa4 {[%emt 0:07:26]} bxa4 {[%emt 0:00:05]} 18. Qe2 {[%emt 0:00:39]} Rb8 {[%emt 0:08:02]} 19. c3 {[%emt 0:02:58]} Nxd5 {[%emt 0:04:23]} 20. Rxd5 {[%emt 0:02:49]} f5 {[%emt 0:09:43]} 21. exf5 {[%emt 0:02:16]} Rxf5 {[%emt 0:00:53]} 22. Qxa6 {[%emt 0:06:31]} Rxb2 {[%emt 0:01:27]} 23. Qxa4 {[%emt 0:00:12]} Rf8 {[%emt 0:01:03]} 24. c4 {[%emt 0:02:53]} Rbb8 {[%emt 0:04:30]} 25. Rc1 {[%emt 0:02:15]} Ra8 {[%emt 0:01:06]} 26. Qb3 {[%emt 0:00:53]} Kh8 {[%emt 0:01:14]} 27. a4 {[%emt 0:10:38]} Ra6 {[%emt 0:04:46]} 28. a5 {[%emt 0:13:43]} Rc6 {[%emt 0:03:19]} 29. Qb5 {[%emt 0:04:05]} Ra8 {[%emt 0:03:53]} 30. Bb6 {[%emt 0:02:32]} Qc8 {[%emt 0:01:35]} 31. Kh2 {[%emt 0:03:48]} h6 {[%emt 0:02:01]} 32. c5 {[%emt 0:07:58]} dxc5 {[%emt 0:03:39]} 33. Bxc5 {[%emt 0:01:33]} Bf6 {[%emt 0:02:17]} 34. Rcd1 {[%emt 0:03:05]} e4 {[%emt 0:01:08]} 35. Bb6 {[%emt 0:01:02]} Qe6 {[%emt 0:00:32]} 36. Bd8 {[%emt 0:06:13]} Kh7 {[%emt 0:03:19]} 37. Bxf6 {[%emt 0:02:42]} Qxf6 {[%emt 0:00:04]} 38. Rf5 {[%emt 0:00:06]} Qg6 {[%emt 0:03:26]} 39. Rd4 {[%emt 0:02:43]} Rca6 {[%emt 0:00:00]} 40. Ra4 {[%emt 0:00:35]} R8a7 {[%emt 0:00:42]} 41. Re5 {[%emt 0:00:34]} Qd6 {[%emt 0:00:00]} 42. Qd5 {[%emt 0:00:30]} Qc7 {[%emt 0:00:00]} 43. Qxe4+ {[%emt 0:00:05]} Rg6 {[%emt 0:00:00]} 44. f4 {[%emt 0:00:49]} Raa6 {[%emt 0:00:00]} 45. f5 {[%emt 0:00:35]} Rgf6 {[%emt 0:00:00]} 46. g3 {[%emt 0:00:26]} Rad6 {[%emt 0:00:00]} 47. Ra2 {[%emt 0:00:18]} Qf7 {[%emt 0:00:32]} 48. Re6 {[%emt 0:00:46]} Kh8 {[%emt 0:00:50]} 49. a6 {[%emt 0:00:26]} Rxf5 {[%emt 0:01:00]} 50. Re8+ {[%emt 0:00:23]} Kh7 {[%emt 0:00:04]} 51. Rf2 {[%emt 0:00:40]} Rdf6 {[%emt 0:00:11]} 52. g4 {[%emt 0:00:32]} Qxe8 {[%emt 0:00:42]} 53. Qxe8 {[%emt 0:00:25]} Rxf2+ {[%emt 0:00:04]} 54. Kg1 {[%emt 0:00:22]} Rf1+ {[%emt 0:00:03]} 55. Kg2 {[%emt 0:00:07]} R6f2+ {[%emt 0:00:28]} 56. Kg3 {[%emt 0:00:06]} Rf3+ {[%emt 0:00:05]} 57. Kg2 {[%emt 0:00:05]} R3f2+ {[%emt 0:00:08]} 1/2-1/2

[Event "Croatian junior league 2021"]
[Site "Rabac"]
[Date "2021.04.10"]
[Round "10.16"]
[White "Veverec, Ivo"]
[Black "Kostic, Lovro"]
[Result "1/2-1/2"]
[ECO "B07"]
[WhiteElo "1786"]
[BlackElo "1367"]
[Annotator "NA"]
[PlyCount "69"]
[EventDate "2021.04.06"]
[EventType "swiss"]
[EventCountry "CRO"]
[SourceTitle "playchess.com"]
[Source "ChessBase"]
[SourceQuality "1"]
[TimeControl "5400+30"]

1. e4 {[%emt 0:00:00]} g6 {[%emt 0:00:00]} 2. d4 {[%emt 0:00:00]} Bg7 {[%emt 0:00:04]} 3. Nf3 {[%emt 0:01:19]} d6 {[%emt 0:00:14]} 4. c3 {[%emt 0:00:18]} Nd7 {[%emt 0:01:39]} 5. Bd3 {[%emt 0:03:13]} Ngf6 {[%emt 0:03:23]} 6. O-O {[%emt 0:00:16]} O-O {[%emt 0:00:12]} 7. Re1 {[%emt 0:01:03]} e5 {[%emt 0:00:47]} 8. Nbd2 {[%emt 0:01:21]} Re8 {[%emt 0:03:12]} 9. Nf1 {[%emt 0:02:11]} a6 {[%emt 0:03:26]} 10. Ng3 {[%emt 0:06:56]} b5 {[%emt 0:02:02]} 11. a4 {[%emt 0:01:39]} bxa4 {[%emt 0:02:00]} 12. Rxa4 {[%emt 0:00:36]} d5 {[%emt 0:05:27]} 13. dxe5 {[%emt 0:21:18]} Nxe5 {[%emt 0:01:24]} 14. Nxe5 {[%emt 0:02:00]} Rxe5 {[%emt 0:01:11]} 15. f3 {[%emt 0:06:06]} Bb7 {[%emt 0:11:16]} 16. Bf4 {[%emt 0:13:14]} Re8 {[%emt 0:05:53]} 17. Bc2 {[%emt 0:01:52]} Qe7 {[%emt 0:09:15]} 18. Ra1 {[%emt 0:02:52]} dxe4 {[%emt 0:06:15]} 19. Nxe4 {[%emt 0:00:07]} Nxe4 {[%emt 0:02:15]} 20. Bxe4 {[%emt 0:01:07]} Bxe4 {[%emt 0:01:42]} 21. Rxe4 {[%emt 0:00:07]} Qc5+ {[%emt 0:00:50]} 22. Be3 {[%emt 0:00:33]} Qb5 {[%emt 0:02:49]} 23. Rb4 {[%emt 0:01:30]} Qc6 {[%emt 0:04:40]} 24. Bf2 {[%emt 0:08:45]} a5 {[%emt 0:05:02]} 25. Rb3 {[%emt 0:09:38]} Qc4 {[%emt 0:07:34]} 26. Rba3 {[%emt 0:00:25]} Qe2 {[%emt 0:05:13]} 27. Bg3 {[%emt 0:09:03]} Qxb2 {[%emt 0:02:31]} 28. Rb3 {[%emt 0:00:09]} Qe2 {[%emt 0:00:26]} 29. Qxe2 {[%emt 0:00:34]} Rxe2 {[%emt 0:00:15]} 30. Bxc7 {[%emt 0:00:03]} a4 {[%emt 0:01:10]} 31. Rba3 {[%emt 0:01:43]} Rc2 {[%emt 0:01:48]} 32. Bf4 {[%emt 0:01:57]} Bxc3 {[%emt 0:01:09]} 33. Rxa4 {[%emt 0:01:52]} Rc8 {[%emt 0:01:11]} 34. Rd1 {[%emt 0:00:26]} Bf6 {[%emt 0:01:20]} 35. Ra6 {[%emt 0:00:52]} 1/2-1/2

[Event "Croatian junior league 2021"]
[Site "Rabac"]
[Date "2021.04.10"]
[Round "10.17"]
[White "Jakrlin, Mihael"]
[Black "Begic, Domagoj"]
[Result "1-0"]
[ECO "B08"]
[WhiteElo "2106"]
[BlackElo "1706"]
[Annotator "NA"]
[PlyCount "37"]
[EventDate "2021.04.06"]
[EventType "swiss"]
[EventCountry "CRO"]
[SourceTitle "playchess.com"]
[Source "ChessBase"]
[SourceQuality "1"]
[TimeControl "5400+30"]

1. Nf3 {[%emt 0:00:59]} d6 {[%emt 0:00:00]} 2. d4 {[%emt 0:00:06]} g6 {[%emt 0:00:05]} 3. Nc3 {[%emt 0:02:02]} Bg7 {[%emt 0:00:12]} 4. e4 {[%emt 0:00:07]} Nf6 {[%emt 0:00:16]} 5. Bf4 {[%emt 0:00:39]} O-O {[%emt 0:00:29]} 6. Qd2 {[%emt 0:00:09]} Nbd7 {[%emt 0:00:34]} 7. O-O-O {[%emt 0:00:40]} a6 {[%emt 0:01:22]} 8. h4 {[%emt 0:00:31]} h5 {[%emt 0:09:56]} 9. e5 {[%emt 0:09:18]} Nh7 {[%emt 0:00:00]} 10. Rg1 {[%emt 0:08:19]} Nb6 {[%emt 0:00:00]} 11. Be2 {[%emt 0:03:01]} dxe5 {[%emt 0:00:00]} 12. Nxe5 {[%emt 0:00:51]} Bxe5 {[%emt 0:00:00]} 13. Bxe5 {[%emt 0:00:17]} Nf6 {[%emt 0:00:00]} 14. Qh6 {[%emt 0:00:51]} Bd7 {[%emt 0:02:10]} 15. g4 {[%emt 0:04:20]} hxg4 {[%emt 0:00:45]} 16. Bxg4 {[%emt 0:00:53]} Bxg4 {[%emt 0:00:07]} 17. Rxg4 {[%emt 0:00:01]} Qd7 {[%emt 0:00:23]} 18. Rdg1 {[%emt 0:01:11]} Qf5 {[%emt 0:00:23]} 19. Rg5 {[%emt 0:00:15]} 1-0

[Event "Croatian junior league 2021"]
[Site "Rabac"]
[Date "2021.04.10"]
[Round "10.23"]
[White "Denic, Marin"]
[Black "Vukojevic, Toni"]
[Result "1-0"]
[ECO "C54"]
[WhiteElo "1914"]
[BlackElo "1538"]
[Annotator "NA"]
[PlyCount "41"]
[EventDate "2021.04.06"]
[EventType "swiss"]
[EventCountry "CRO"]
[SourceTitle "playchess.com"]
[Source "ChessBase"]
[SourceQuality "1"]
[TimeControl "5400+30"]

1. e4 {[%emt 0:02:24]} e5 {[%emt 0:00:00]} 2. Nf3 {[%emt 0:00:04]} Nc6 {[%emt 0:00:00]} 3. Bc4 {[%emt 0:00:20]} Bc5 {[%emt 0:00:00]} 4. c3 {[%emt 0:00:06]} Nf6 {[%emt 0:00:00]} 5. d3 {[%emt 0:00:04]} h6 {[%emt 0:00:05]} 6. O-O {[%emt 0:00:15]} O-O {[%emt 0:01:12]} 7. Nbd2 {[%emt 0:01:03]} d6 {[%emt 0:00:26]} 8. Re1 {[%emt 0:00:25]} Re8 {[%emt 0:01:13]} 9. Nf1 {[%emt 0:00:34]} Bg4 {[%emt 0:01:02]} 10. Ng3 {[%emt 0:01:34]} Ne7 {[%emt 0:03:44]} 11. h3 {[%emt 0:01:23]} Bxf3 {[%emt 0:00:36]} 12. Qxf3 {[%emt 0:00:04]} Ng6 {[%emt 0:00:41]} 13. Nf5 {[%emt 0:01:21]} Ne7 {[%emt 0:01:28]} 14. Nxh6+ {[%emt 0:00:55]} gxh6 {[%emt 0:01:56]} 15. Qxf6 {[%emt 0:00:09]} d5 {[%emt 0:09:45]} 16. Bxh6 {[%emt 0:05:06]} Nf5 {[%emt 0:00:12]} 17. Qxf5 {[%emt 0:00:11]} Re6 {[%emt 0:06:16]} 18. Bg5 {[%emt 0:01:06]} Qe8 {[%emt 0:05:48]} 19. Bxd5 {[%emt 0:00:22]} Rb6 {[%emt 0:00:09]} 20. Bf6 {[%emt 0:01:13]} Bf8 {[%emt 0:03:56]} 21. Qg6+ {[%emt 0:00:13]} 1-0

[Event "Croatian junior league 2021"]
[Site "Rabac"]
[Date "2021.04.11"]
[Round "11.8"]
[White "Zekic, Patrik"]
[Black "Veverec, Ivo"]
[Result "1/2-1/2"]
[ECO "D36"]
[WhiteElo "1731"]
[BlackElo "1786"]
[Annotator "NA RC"]
[PlyCount "51"]
[EventDate "2021.04.06"]
[EventType "swiss"]
[EventCountry "CRO"]
[SourceTitle "playchess.com"]
[Source "ChessBase"]
[SourceQuality "1"]
[TimeControl "5400+30"]

1. d4 {[%emt 0:07:52]} d5 {[%emt 0:00:00]} 2. c4 {[%emt 0:00:07]} e6 {[%emt 0:00:00]} 3. cxd5 {[%emt 0:00:14]} exd5 {[%emt 0:00:00]} 4. Nc3 {[%emt 0:00:11]} c6 {[%emt 0:00:04]} 5. Qc2 {[%emt 0:05:20]} Nf6 {[%emt 0:02:41]} 6. Bg5 {[%emt 0:00:15]} h6 {[%emt 0:00:23]} 7. Bh4 {[%emt 0:00:43]} Be7 {[%emt 0:00:07]} 8. e3 {[%emt 0:00:12]} Be6 {[%emt 0:00:59]} 9. Bd3 {[%emt 0:00:19]} Nbd7 {[%emt 0:00:10]} 10. Nge2 {[%emt 0:00:12]} Nh5 {[%emt 0:02:31]} 11. Bxe7 {[%emt 0:05:31]} Qxe7 {[%emt 0:00:55]} 12. Rd1 {[%emt 0:01:04]} Nb6 {[%emt 0:07:12]} 13. Qb3 {[%emt 0:30:34]} O-O {[%emt 0:10:49]} 14. O-O {[%emt 0:05:04]} Bg4 {[%emt 0:08:17]} 15. Rc1 {[%emt 0:03:35]} Qg5 {[%emt 0:07:15]} 16. Ng3 {[%emt 0:11:03]} Nxg3 {[%emt 0:00:57]} 17. hxg3 {[%emt 0:00:03]} Bf5 {[%emt 0:01:51]} 18. Ne2 {[%emt 0:01:43]} Bxd3 {[%emt 0:01:03]} 19. Qxd3 {[%emt 0:00:03]} Nc4 {[%emt 0:00:22]} 20. b3 {[%emt 0:01:46]} Nd6 {[%emt 0:00:14]} 21. Nc3 {[%emt 0:01:51]} Rfe8 {[%emt 0:00:21]} 22. b4 {[%emt 0:03:09]} a6 {[%emt 0:04:04]} 23. a4 {[%emt 0:00:57]} b5 {[%emt 0:03:27]} 24. axb5 {[%emt 0:05:10]} axb5 {[%emt 0:00:17]} 25. Ra1 {[%emt 0:00:08]} Qe7 {[%emt 0:01:45]} 26. Ne2 {[%emt 0:06:13]} 1/2-1/2

[Event "Croatian junior league 2021"]
[Site "Rabac"]
[Date "2021.04.11"]
[Round "11.11"]
[White "Dumancic, Simun"]
[Black "Horcicka, Jan"]
[Result "1/2-1/2"]
[ECO "C54"]
[WhiteElo "1883"]
[BlackElo "1698"]
[Annotator "NA RC"]
[PlyCount "39"]
[EventDate "2021.04.06"]
[EventType "swiss"]
[EventCountry "CRO"]
[SourceTitle "playchess.com"]
[Source "ChessBase"]
[SourceQuality "1"]
[TimeControl "5400+30"]

1. e4 {[%emt 0:03:22]} e5 {[%emt 0:00:00]} 2. Nf3 {[%emt 0:00:36]} Nc6 {[%emt 0:00:00]} 3. Bc4 {[%emt 0:00:07]} Bc5 {[%emt 0:00:07]} 4. c3 {[%emt 0:00:53]} Nf6 {[%emt 0:00:04]} 5. d3 {[%emt 0:00:05]} O-O {[%emt 0:00:32]} 6. O-O {[%emt 0:00:21]} d6 {[%emt 0:00:17]} 7. a4 {[%emt 0:00:39]} a5 {[%emt 0:00:37]} 8. Na3 {[%emt 0:00:43]} Ne7 {[%emt 0:01:28]} 9. Nc2 {[%emt 0:02:46]} Ng6 {[%emt 0:01:24]} 10. d4 {[%emt 0:11:39]} Ba7 {[%emt 0:00:30]} 11. Re1 {[%emt 0:07:49]} Nxe4 {[%emt 0:07:34]} 12. Rxe4 {[%emt 0:01:25]} d5 {[%emt 0:00:07]} 13. Re1 {[%emt 0:00:50]} dxc4 $11 {[%emt 0:00:21]} 14. Nxe5 {[%emt 0:01:09]} Nxe5 {[%emt 0:07:25]} 15. Rxe5 {[%emt 0:00:44]} c5 {[%emt 0:00:37]} 16. d5 {[%emt 0:17:31]} Bb8 {[%emt 0:01:01]} 17. Re4 {[%emt 0:00:47]} Bf5 {[%emt 0:02:40]} 18. Rxc4 {[%emt 0:01:29]} Bxc2 {[%emt 0:00:19]} 19. Qxc2 {[%emt 0:00:04]} Qxd5 {[%emt 0:00:05]} 20. Re4 {[%emt 0:03:26]} 1/2-1/2

[Event "Croatian junior league 2021"]
[Site "Rabac"]
[Date "2021.04.11"]
[Round "11.12"]
[White "Kostic, Lovro"]
[Black "Martic, Filip"]
[Result "1-0"]
[ECO "A48"]
[WhiteElo "1367"]
[BlackElo "1756"]
[Annotator "NA RC"]
[PlyCount "73"]
[EventDate "2021.04.06"]
[EventType "swiss"]
[EventCountry "CRO"]
[SourceTitle "playchess.com"]
[Source "ChessBase"]
[SourceQuality "1"]
[TimeControl "5400+30"]

1. d4 {[%emt 0:00:00]} Nf6 {[%emt 0:07:11]} 2. Nf3 {[%emt 0:00:00]} g6 {[%emt 0:00:26]} 3. e3 {[%emt 0:00:00]} Bg7 {[%emt 0:00:16]} 4. Nbd2 {[%emt 0:01:00]} O-O {[%emt 0:01:28]} 5. c4 {[%emt 0:00:40]} d6 {[%emt 0:00:39]} 6. Be2 {[%emt 0:02:47]} Nc6 {[%emt 0:01:15]} 7. O-O {[%emt 0:01:00]} e5 {[%emt 0:00:12]} 8. d5 {[%emt 0:01:41]} Ne7 {[%emt 0:00:05]} 9. e4 {[%emt 0:00:53]} Nd7 {[%emt 0:01:15]} 10. b4 {[%emt 0:02:42]} a6 {[%emt 0:01:56]} 11. Qc2 {[%emt 0:02:25]} f5 {[%emt 0:02:46]} 12. Ng5 {[%emt 0:02:47]} Nf6 {[%emt 0:01:39]} 13. Ne6 {[%emt 0:01:38]} Bxe6 {[%emt 0:00:03]} 14. dxe6 {[%emt 0:00:06]} Qc8 {[%emt 0:00:51]} 15. c5 {[%emt 0:01:18]} d5 {[%emt 0:03:01]} 16. exd5 {[%emt 0:04:43]} Nfxd5 {[%emt 0:00:12]} 17. Qb3 {[%emt 0:05:40]} Qxe6 {[%emt 0:01:53]} 18. Bc4 {[%emt 0:01:27]} c6 {[%emt 0:00:07]} 19. Bb2 {[%emt 0:01:53]} e4 {[%emt 0:03:44]} 20. Rfe1 {[%emt 0:03:47]} Qd7 {[%emt 0:07:57]} 21. Rad1 {[%emt 0:04:54]} Kh8 {[%emt 0:04:57]} 22. Bxg7+ {[%emt 0:00:40]} Kxg7 {[%emt 0:00:16]} 23. Qb2+ {[%emt 0:00:32]} Rf6 {[%emt 0:01:05]} 24. Nf1 {[%emt 0:04:06]} Qc7 {[%emt 0:02:42]} 25. a4 {[%emt 0:06:02]} b5 {[%emt 0:04:23]} 26. axb5 {[%emt 0:06:21]} axb5 {[%emt 0:00:13]} 27. Ba2 {[%emt 0:04:01]} Rd8 {[%emt 0:06:41]} 28. Rd2 {[%emt 0:06:42]} Nf4 {[%emt 0:03:08]} 29. Red1 {[%emt 0:04:43]} Rxd2 {[%emt 0:00:25]} 30. Rxd2 {[%emt 0:00:40]} Nd3 {[%emt 0:01:46]} 31. Qc3 {[%emt 0:01:12]} g5 {[%emt 0:07:15]} 32. Ng3 {[%emt 0:05:51]} Kg6 {[%emt 0:00:28]} 33. Nh5 {[%emt 0:03:40]} Rf8 {[%emt 0:02:01]} 34. Qg7+ {[%emt 0:00:15]} Kxh5 {[%emt 0:00:50]} 35. Qxh7+ {[%emt 0:00:27]} Kg4 {[%emt 0:00:05]} 36. Qh3+ {[%emt 0:00:04]} Kf4 {[%emt 0:00:11]} 37. Qg3# {[%emt 0:00:04]} 1-0

[Event "Croatian junior league 2021"]
[Site "Rabac"]
[Date "2021.04.11"]
[Round "11.16"]
[White "Cecic-Sule, Dino"]
[Black "Bedic, Noemi"]
[Result "1/2-1/2"]
[ECO "E94"]
[WhiteElo "1770"]
[BlackElo "1587"]
[Annotator "NA RC"]
[PlyCount "72"]
[EventDate "2021.04.06"]
[EventType "swiss"]
[EventCountry "CRO"]
[SourceTitle "playchess.com"]
[Source "ChessBase"]
[SourceQuality "1"]
[TimeControl "5400+30"]

1. d4 {[%emt 0:00:00]} Nf6 {[%emt 0:06:01]} 2. Nf3 {[%emt 0:00:00]} g6 {[%emt 0:00:16]} 3. c4 {[%emt 0:00:20]} d6 {[%emt 0:00:15]} 4. Nc3 {[%emt 0:00:10]} Bg7 {[%emt 0:00:07]} 5. e4 {[%emt 0:00:07]} O-O {[%emt 0:00:03]} 6. Be2 {[%emt 0:00:06]} Nbd7 {[%emt 0:00:35]} 7. O-O {[%emt 0:04:12]} e5 {[%emt 0:00:06]} 8. dxe5 {[%emt 0:01:29]} dxe5 {[%emt 0:00:14]} 9. Qc2 {[%emt 0:03:39]} c6 {[%emt 0:03:28]} 10. Bg5 {[%emt 0:08:58]} Qc7 {[%emt 0:02:46]} 11. Rfd1 {[%emt 0:03:34]} h6 {[%emt 0:00:09]} 12. Bxf6 {[%emt 0:06:18]} Bxf6 {[%emt 0:00:52]} 13. b4 {[%emt 0:01:10]} Rd8 {[%emt 0:02:31]} 14. Rd2 {[%emt 0:15:52]} Nf8 {[%emt 0:01:30]} 15. Rad1 {[%emt 0:07:56]} Bg4 {[%emt 0:04:09]} 16. Ne1 {[%emt 0:07:57]} Bxe2 {[%emt 0:03:09]} 17. Nxe2 {[%emt 0:00:48]} Ne6 {[%emt 0:00:09]} 18. Nf3 {[%emt 0:03:02]} a5 {[%emt 0:00:47]} 19. a3 {[%emt 0:04:02]} Kh7 {[%emt 0:03:31]} 20. Rxd8 {[%emt 0:04:47]} Rxd8 {[%emt 0:00:07]} 21. Rxd8 {[%emt 0:00:22]} Qxd8 {[%emt 0:00:13]} 22. Qd2 {[%emt 0:00:28]} Qxd2 {[%emt 0:03:40]} 23. Nxd2 {[%emt 0:00:19]} Be7 {[%emt 0:02:02]} 24. c5 {[%emt 0:01:29]} axb4 {[%emt 0:00:07]} 25. axb4 {[%emt 0:00:13]} Kg7 {[%emt 0:00:49]} 26. Nc4 {[%emt 0:00:59]} Kf6 {[%emt 0:06:00]} 27. Na5 {[%emt 0:00:27]} Nd8 {[%emt 0:00:12]} 28. Nc4 {[%emt 0:03:07]} Ke6 {[%emt 0:02:24]} 29. f3 {[%emt 0:02:00]} f6 {[%emt 0:05:13]} 30. Kf2 {[%emt 0:00:46]} Kd7 {[%emt 0:00:15]} 31. Ke3 {[%emt 0:00:39]} Ne6 {[%emt 0:01:04]} 32. f4 {[%emt 0:01:58]} exf4+ {[%emt 0:01:43]} 33. Nxf4 {[%emt 0:00:08]} Nxf4 {[%emt 0:01:21]} 34. Kxf4 {[%emt 0:00:07]} Bd8 {[%emt 0:00:21]} 35. h3 {[%emt 0:08:36]} Ke6 {[%emt 0:01:06]} 36. Kf3 {[%emt 0:01:13]} Bc7 {[%emt 0:07:02]} 1/2-1/2